[Event "*** Titled Tuesday Blitz"]
[Site "Chess.com"]
[Date "2020.04.28"]
[Round "5"]
[White "pichonazo"]
[Black "AndrewMaco"]
[Result "1/2-1/2"]
[WhiteElo "2444"]
[BlackElo "2636"]
[TimeControl "180+1"]
[EndTime "10:56:23 PDT"]
[Termination "Game drawn by repetition"]

1. e4 {[%clk 0:03:00.9]} 1... c6 {[%clk 0:02:59.8]} 2. d4 {[%clk 0:03:00.4]}
2... d5 {[%clk 0:03:00.7]} 3. exd5 {[%clk 0:03:00.8]} 3... cxd5 {[%clk
0:02:58.6]} 4. c4 {[%clk 0:02:58.4]} 4... Nf6 {[%clk 0:02:57.1]} 5. Nc3 {[%clk
0:02:58.8]} 5... g6 {[%clk 0:02:57.3]} 6. cxd5 {[%clk 0:02:57.7]} 6... Bg7
{[%clk 0:02:57.2]} 7. Qb3 {[%clk 0:02:58.1]} 7... O-O {[%clk 0:02:57.6]} 8. Be2
{[%clk 0:02:58.1]} 8... Nbd7 {[%clk 0:02:57.5]} 9. Bf3 {[%clk 0:02:58.3]} 9...
Nb6 {[%clk 0:02:58]} 10. Nge2 {[%clk 0:02:58.3]} 10... Bf5 {[%clk 0:02:58.4]}
11. Bf4 {[%clk 0:02:46]} 11... Bd3 {[%clk 0:02:45.2]} 12. Be5 {[%clk 0:02:41]}
12... Bc4 {[%clk 0:02:41]} 13. Qb4 {[%clk 0:02:34.3]} 13... a5 {[%clk
0:02:38.9]} 14. Qa3 {[%clk 0:02:29.8]} 14... Nbxd5 {[%clk 0:02:29.7]} 15. Nxd5
{[%clk 0:02:27.4]} 15... Bxd5 {[%clk 0:02:25.1]} 16. O-O {[%clk 0:02:24]} 16...
Bxf3 {[%clk 0:02:17.9]} 17. Qxf3 {[%clk 0:02:22.5]} 17... Qd7 {[%clk 0:02:14.4]}
18. Nc3 {[%clk 0:02:19.8]} 18... b5 {[%clk 0:02:08.1]} 19. Rad1 {[%clk
0:02:09.4]} 19... b4 {[%clk 0:02:02.7]} 20. Ne4 {[%clk 0:02:08.9]} 20... Nxe4
{[%clk 0:01:46.4]} 21. Qxe4 {[%clk 0:02:07.9]} 21... Rac8 {[%clk 0:01:47]} 22.
Bxg7 {[%clk 0:02:05.5]} 22... Kxg7 {[%clk 0:01:47.9]} 23. d5 {[%clk 0:02:05.8]}
23... Qd6 {[%clk 0:01:40.9]} 24. Rfe1 {[%clk 0:02:03.4]} 24... Rc7 {[%clk
0:01:41.3]} 25. Rd2 {[%clk 0:01:59.3]} 25... Rd8 {[%clk 0:01:33.2]} 26. Red1
{[%clk 0:01:58.9]} 26... Rcd7 {[%clk 0:01:16.2]} 27. g3 {[%clk 0:01:58.5]} 27...
Qf6 {[%clk 0:01:14.9]} 28. Qc4 {[%clk 0:01:52.2]} 28... Qe5 {[%clk 0:01:10.5]}
29. Qb5 {[%clk 0:01:46.3]} 29... Qc7 {[%clk 0:00:57.2]} 30. h4 {[%clk
0:01:43.9]} 30... h5 {[%clk 0:00:52.3]} 31. Kg2 {[%clk 0:01:40.8]} 31... Rb8
{[%clk 0:00:45.6]} 32. Qc6 {[%clk 0:01:37.4]} 32... Rb6 {[%clk 0:00:43.4]} 33.
Qxc7 {[%clk 0:01:33.7]} 33... Rxc7 {[%clk 0:00:44.3]} 34. d6 {[%clk 0:01:34.1]}
34... exd6 {[%clk 0:00:44.1]} 35. Rxd6 {[%clk 0:01:34.4]} 35... Rxd6 {[%clk
0:00:44.7]} 36. Rxd6 {[%clk 0:01:34.3]} 36... Rc2 {[%clk 0:00:45.4]} 37. Ra6
{[%clk 0:01:33.3]} 37... Rc5 {[%clk 0:00:44.4]} 38. b3 {[%clk 0:01:30.4]} 38...
Rf5 {[%clk 0:00:43.4]} 39. f4 {[%clk 0:01:26.7]} 39... Rc5 {[%clk 0:00:43]} 40.
Kf3 {[%clk 0:01:26.3]} 40... Rc3+ {[%clk 0:00:41.1]} 41. Ke4 {[%clk 0:01:25.9]}
41... Rxg3 {[%clk 0:00:37]} 42. Rxa5 {[%clk 0:01:26.2]} 42... Rg2 {[%clk
0:00:20.9]} 43. Ra4 {[%clk 0:01:24.5]} 43... Kf6 {[%clk 0:00:18.5]} 44. Kf3
{[%clk 0:01:23]} 44... Rc2 {[%clk 0:00:17.6]} 45. Rxb4 {[%clk 0:01:22.6]} 45...
Rxa2 {[%clk 0:00:17.2]} 46. Rb6+ {[%clk 0:01:23]} 46... Kg7 {[%clk 0:00:17.5]}
47. Rb5 {[%clk 0:01:23.3]} 47... Rh2 {[%clk 0:00:16.8]} 48. Kg3 {[%clk
0:01:21.8]} 48... Rd2 {[%clk 0:00:16.8]} 49. b4 {[%clk 0:01:20.3]} 49... Rd3+
{[%clk 0:00:17]} 50. Kg2 {[%clk 0:01:20.3]} 50... Rb3 {[%clk 0:00:16.1]} 51. f5
{[%clk 0:01:17.1]} 51... gxf5 {[%clk 0:00:14.9]} 52. Rxf5 {[%clk 0:01:17.5]}
52... Kg6 {[%clk 0:00:07.4]} 53. Rg5+ {[%clk 0:01:16.2]} 53... Kh6 {[%clk
0:00:08]} 54. Rb5 {[%clk 0:01:15.6]} 54... f6 {[%clk 0:00:08]} 55. Rb6 {[%clk
0:01:14.7]} 55... Kg6 {[%clk 0:00:08.6]} 56. Rb5 {[%clk 0:01:14.4]} 56... Kh6
{[%clk 0:00:08.6]} 57. Rb6 {[%clk 0:01:14.3]} 57... Kg6 {[%clk 0:00:09.2]} 58.
Rb5 {[%clk 0:01:13.3]} 58... Re3 {[%clk 0:00:09]} 59. Rb8 {[%clk 0:01:09.7]}
59... Kf5 {[%clk 0:00:08.7]} 60. b5 {[%clk 0:01:07.8]} 60... Kg4 {[%clk
0:00:07.3]} 61. b6 {[%clk 0:01:06.3]} 61... Re2+ {[%clk 0:00:07.2]} 62. Kf1
{[%clk 0:01:05.4]} 62... Rb2 {[%clk 0:00:07.3]} 63. Ke1 {[%clk 0:01:02.5]} 63...
Kxh4 {[%clk 0:00:07.6]} 64. Kd1 {[%clk 0:01:02.7]} 64... f5 {[%clk 0:00:07.7]}
65. Kc1 {[%clk 0:01:03.6]} 65... Rb5 {[%clk 0:00:06.9]} 66. Kc2 {[%clk
0:01:04.1]} 66... Kh3 {[%clk 0:00:06.8]} 67. Kc3 {[%clk 0:01:04.1]} 67... h4
{[%clk 0:00:05.8]} 68. Kc4 {[%clk 0:01:04.3]} 68... Rb1 {[%clk 0:00:05.1]} 69.
Kc5 {[%clk 0:01:04.7]} 69... f4 {[%clk 0:00:05.1]} 70. Rf8 {[%clk 0:01:04.6]}
70... Kg3 {[%clk 0:00:05]} 71. Rg8+ {[%clk 0:01:04]} 71... Kf2 {[%clk
0:00:05.4]} 72. Rh8 {[%clk 0:01:03.9]} 72... Kg3 {[%clk 0:00:04.4]} 73. Rg8+
{[%clk 0:01:03.7]} 73... Kh3 {[%clk 0:00:04.9]} 74. Rf8 {[%clk 0:01:03.6]} 74...
Kg4 {[%clk 0:00:05.1]} 75. Rg8+ {[%clk 0:01:03.5]} 75... Kh3 {[%clk 0:00:05.5]}
76. Rf8 {[%clk 0:01:03.3]} 1/2-1/2

[Event "*** Titled Tuesday Blitz"]
[Site "Chess.com"]
[Date "2020.04.28"]
[Round "5"]
[White "Carnivoras"]
[Black "TzoumpasAnastasis"]
[Result "1-0"]
[WhiteElo "2641"]
[BlackElo "2197"]
[TimeControl "180+1"]
[EndTime "10:56:24 PDT"]
[Termination "Carnivoras won by resignation"]

1. d4 {[%clk 0:03:00.9]} 1... Nf6 {[%clk 0:02:59]} 2. Nf3 {[%clk 0:03:00.6]}
2... e6 {[%clk 0:02:59]} 3. Bg5 {[%clk 0:03:01.1]} 3... c5 {[%clk 0:02:58.4]} 4.
e3 {[%clk 0:03:00.1]} 4... h6 {[%clk 0:02:58.2]} 5. Bh4 {[%clk 0:02:59.6]} 5...
g5 {[%clk 0:02:57.8]} 6. Bg3 {[%clk 0:02:59.2]} 6... b6 {[%clk 0:02:57.6]} 7.
Nbd2 {[%clk 0:02:58.9]} 7... Bb7 {[%clk 0:02:57.5]} 8. Bd3 {[%clk 0:02:59.1]}
8... Nc6 {[%clk 0:02:56.1]} 9. c3 {[%clk 0:02:59]} 9... d6 {[%clk 0:02:52.4]}
10. Qe2 {[%clk 0:02:58.4]} 10... Be7 {[%clk 0:02:51.5]} 11. Ba6 {[%clk
0:02:55.7]} 11... Qc7 {[%clk 0:02:50.4]} 12. Bxb7 {[%clk 0:02:53.5]} 12... Qxb7
{[%clk 0:02:49.7]} 13. Nc4 {[%clk 0:02:53.2]} 13... O-O-O {[%clk 0:02:48]} 14.
O-O-O {[%clk 0:02:20]} 14... g4 {[%clk 0:02:42.5]} 15. Nfd2 {[%clk 0:02:16.6]}
15... b5 {[%clk 0:02:38.7]} 16. Na3 {[%clk 0:02:16]} 16... a6 {[%clk 0:02:33]}
17. Nc2 {[%clk 0:02:15.7]} 17... h5 {[%clk 0:02:29.5]} 18. Bh4 {[%clk
0:02:14.1]} 18... Kb8 {[%clk 0:02:13.1]} 19. f3 {[%clk 0:02:08]} 19... cxd4
{[%clk 0:02:08.6]} 20. exd4 {[%clk 0:02:06]} 20... b4 {[%clk 0:01:59.9]} 21.
Bxf6 {[%clk 0:01:38.6]} 21... bxc3 {[%clk 0:01:52.8]} 22. bxc3 {[%clk
0:01:35.2]} 22... Bxf6 {[%clk 0:01:52.5]} 23. fxg4 {[%clk 0:01:35.4]} 23... hxg4
{[%clk 0:01:47.6]} 24. Qxg4 {[%clk 0:01:34.4]} 24... Rdg8 {[%clk 0:01:47.3]} 25.
Qf3 {[%clk 0:01:32.4]} 25... Bg5 {[%clk 0:01:44.9]} 26. g3 {[%clk 0:01:22.7]}
26... Ka8 {[%clk 0:01:39.7]} 27. h4 {[%clk 0:01:21]} 27... Bxd2+ {[%clk
0:01:35.2]} 28. Kxd2 {[%clk 0:01:16.1]} 28... d5 {[%clk 0:01:32.8]} 29. Rhf1
{[%clk 0:01:10.3]} 29... Na5 {[%clk 0:01:24]} 30. Rb1 {[%clk 0:01:00.2]} 30...
Nc4+ {[%clk 0:01:22.2]} 31. Ke2 {[%clk 0:00:58.4]} 31... Qc7 {[%clk 0:00:50.3]}
32. Qxf7 {[%clk 0:00:39.4]} 32... Qxf7 {[%clk 0:00:50.1]} 33. Rxf7 {[%clk
0:00:39.4]} 33... Nd6 {[%clk 0:00:50.3]} 34. Rd7 {[%clk 0:00:31.1]} 34... Ne4
{[%clk 0:00:43.9]} 35. Rbb7 {[%clk 0:00:29.7]} 35... Nxc3+ {[%clk 0:00:43]} 36.
Kf1 {[%clk 0:00:24.5]} 36... Rxg3 {[%clk 0:00:32.8]} 37. Ra7+ {[%clk 0:00:22.3]}
37... Kb8 {[%clk 0:00:31.9]} 38. Rdb7+ {[%clk 0:00:22.4]} 38... Kc8 {[%clk
0:00:31.8]} 39. Rf7 {[%clk 0:00:22.4]} 39... Kb8 {[%clk 0:00:22.9]} 40. Nb4
{[%clk 0:00:21.2]} 40... Rf3+ {[%clk 0:00:17.7]} 41. Rxf3 {[%clk 0:00:20.9]}
41... Kxa7 {[%clk 0:00:17.7]} 42. Rxc3 {[%clk 0:00:21.4]} 42... Rxh4 {[%clk
0:00:16.2]} 43. Nc2 {[%clk 0:00:20.1]} 43... Kb6 {[%clk 0:00:14.5]} 44. Ke2
{[%clk 0:00:20.4]} 44... Kb5 {[%clk 0:00:14.6]} 45. Kd2 {[%clk 0:00:20.5]} 45...
Rh2+ {[%clk 0:00:14.6]} 46. Kc1 {[%clk 0:00:20.6]} 46... Rh4 {[%clk 0:00:13.9]}
47. Kb2 {[%clk 0:00:20.7]} 47... Rh2 {[%clk 0:00:13.7]} 48. Kb3 {[%clk
0:00:20.4]} 48... Kb6 {[%clk 0:00:13.9]} 49. Re3 {[%clk 0:00:20.2]} 49... Rh6
{[%clk 0:00:13.3]} 50. Nb4 {[%clk 0:00:20.2]} 50... Rg6 {[%clk 0:00:13.2]} 51.
Nd3 {[%clk 0:00:20.2]} 51... a5 {[%clk 0:00:13.3]} 52. Nc5 {[%clk 0:00:20.3]}
52... e5 {[%clk 0:00:12.9]} 53. Nd7+ {[%clk 0:00:20.6]} 53... Kb5 {[%clk
0:00:12.1]} 54. Nxe5 {[%clk 0:00:21.5]} 54... a4+ {[%clk 0:00:12]} 55. Ka3
{[%clk 0:00:21.2]} 55... Rg2 {[%clk 0:00:10.9]} 56. Rc3 {[%clk 0:00:20.1]} 56...
Rd2 {[%clk 0:00:10.2]} 57. Rc5+ {[%clk 0:00:20.2]} 57... Kb6 {[%clk 0:00:09.8]}
58. Rxd5 {[%clk 0:00:21.1]} 1-0

[Event "*** Titled Tuesday Blitz"]
[Site "Chess.com"]
[Date "2020.04.28"]
[Round "5"]
[White "Oglob71"]
[Black "1977Ivan"]
[Result "1/2-1/2"]
[WhiteElo "2489"]
[BlackElo "2636"]
[TimeControl "180+1"]
[EndTime "10:56:24 PDT"]
[Termination "Game drawn - insufficient material"]

1. d4 {[%clk 0:03:00.9]} 1... Nf6 {[%clk 0:02:59.2]} 2. Nf3 {[%clk 0:02:56.5]}
2... d6 {[%clk 0:02:58.3]} 3. c4 {[%clk 0:02:55.8]} 3... c6 {[%clk 0:02:57.7]}
4. Nc3 {[%clk 0:02:56.2]} 4... Bg4 {[%clk 0:02:56.5]} 5. e3 {[%clk 0:02:54.9]}
5... Nbd7 {[%clk 0:02:55.7]} 6. Be2 {[%clk 0:02:55.1]} 6... e5 {[%clk
0:02:55.3]} 7. h3 {[%clk 0:02:55.4]} 7... Bh5 {[%clk 0:02:52.5]} 8. g4 {[%clk
0:02:52.2]} 8... Bg6 {[%clk 0:02:52]} 9. Nh4 {[%clk 0:02:52.7]} 9... Ne4 {[%clk
0:02:40.2]} 10. Nxg6 {[%clk 0:02:51.3]} 10... Nxc3 {[%clk 0:02:38.4]} 11. bxc3
{[%clk 0:02:51]} 11... hxg6 {[%clk 0:02:38.1]} 12. Bf3 {[%clk 0:02:49.3]} 12...
Qc7 {[%clk 0:02:24.9]} 13. Qb3 {[%clk 0:02:43.3]} 13... O-O-O {[%clk 0:02:24.3]}
14. Ba3 {[%clk 0:02:42]} 14... f5 {[%clk 0:02:23.5]} 15. Rb1 {[%clk 0:02:40.4]}
15... e4 {[%clk 0:02:22.4]} 16. Be2 {[%clk 0:02:40.4]} 16... Kb8 {[%clk
0:02:08]} 17. Kd2 {[%clk 0:02:40.2]} 17... Ka8 {[%clk 0:02:07.5]} 18. g5 {[%clk
0:02:37.5]} 18... Rh4 {[%clk 0:01:56.1]} 19. Kc2 {[%clk 0:02:27.2]} 19... Be7
{[%clk 0:01:52]} 20. Rbg1 {[%clk 0:02:21.5]} 20... Nb6 {[%clk 0:01:51]} 21. Rg3
{[%clk 0:02:13.7]} 21... f4 {[%clk 0:01:38.1]} 22. Rg4 {[%clk 0:02:07]} 22...
Rxg4 {[%clk 0:01:38]} 23. hxg4 {[%clk 0:02:05]} 23... fxe3 {[%clk 0:01:33.9]}
24. fxe3 {[%clk 0:02:05]} 24... Bxg5 {[%clk 0:01:33.9]} 25. Bc1 {[%clk
0:02:05.6]} 25... Rf8 {[%clk 0:01:30.5]} 26. Kd1 {[%clk 0:02:03.5]} 26... d5
{[%clk 0:01:20.1]} 27. cxd5 {[%clk 0:01:57.7]} 27... cxd5 {[%clk 0:01:15.4]} 28.
Qb4 {[%clk 0:01:56.1]} 28... Rc8 {[%clk 0:01:14]} 29. Bd2 {[%clk 0:01:55.2]}
29... a6 {[%clk 0:01:12.5]} 30. a4 {[%clk 0:01:54.4]} 30... Be7 {[%clk
0:01:09.4]} 31. Qb3 {[%clk 0:01:53.6]} 31... Nc4 {[%clk 0:01:03.8]} 32. Bxc4
{[%clk 0:01:49.1]} 32... Qxc4 {[%clk 0:01:00]} 33. Qxc4 {[%clk 0:01:48.9]} 33...
Rxc4 {[%clk 0:00:59]} 34. Rh7 {[%clk 0:01:49.2]} 34... Bf6 {[%clk 0:00:56.3]}
35. g5 {[%clk 0:01:48.7]} 35... Bxg5 {[%clk 0:00:56]} 36. Rxg7 {[%clk
0:01:49.3]} 36... Rxa4 {[%clk 0:00:54]} 37. Rxg6 {[%clk 0:01:49.8]} 37... Be7
{[%clk 0:00:53]} 38. Re6 {[%clk 0:01:46.5]} 38... Ba3 {[%clk 0:00:48.6]} 39. Re5
{[%clk 0:01:42.6]} 39... Rc4 {[%clk 0:00:44.5]} 40. Rxd5 {[%clk 0:01:41.6]}
40... b5 {[%clk 0:00:44.6]} 41. Re5 {[%clk 0:01:40.9]} 41... Kb7 {[%clk
0:00:43.4]} 42. Rxe4 {[%clk 0:01:41.1]} 42... a5 {[%clk 0:00:43.5]} 43. Re5
{[%clk 0:01:38.8]} 43... Kc6 {[%clk 0:00:42.6]} 44. e4 {[%clk 0:01:31.6]} 44...
a4 {[%clk 0:00:42.5]} 45. Re6+ {[%clk 0:01:31.2]} 45... Kc7 {[%clk 0:00:41.3]}
46. d5 {[%clk 0:01:26.9]} 46... b4 {[%clk 0:00:36.9]} 47. cxb4 {[%clk
0:01:26.4]} 47... Bb2 {[%clk 0:00:36.6]} 48. Bf4+ {[%clk 0:01:22]} 48... Kb7
{[%clk 0:00:34.3]} 49. Re7+ {[%clk 0:01:17.2]} 49... Kb6 {[%clk 0:00:34.1]} 50.
Be3+ {[%clk 0:01:11.8]} 50... Bd4 {[%clk 0:00:29.4]} 51. Bxd4+ {[%clk
0:01:11.2]} 51... Rxd4+ {[%clk 0:00:29.6]} 52. Kc2 {[%clk 0:01:11.7]} 52... Rxb4
{[%clk 0:00:29.5]} 53. d6 {[%clk 0:01:11.8]} 53... a3 {[%clk 0:00:28.3]} 54. Re8
{[%clk 0:01:04.8]} 54... Kc6 {[%clk 0:00:24.2]} 55. Ra8 {[%clk 0:01:03.7]} 55...
Kxd6 {[%clk 0:00:22]} 56. Rxa3 {[%clk 0:01:03.6]} 56... Rxe4 {[%clk 0:00:22.5]}
57. Rd3+ {[%clk 0:01:02.8]} 57... Ke5 {[%clk 0:00:21.7]} 58. Rc3 {[%clk
0:00:19.3]} 58... Kf5 {[%clk 0:00:21.1]} 59. Kb3 {[%clk 0:00:19.4]} 59... Ke5
{[%clk 0:00:21.2]} 60. Rc4 {[%clk 0:00:19.6]} 60... Kf5 {[%clk 0:00:21.3]} 61.
Rxe4 {[%clk 0:00:19.2]} 61... Kxe4 {[%clk 0:00:21.4]} 1/2-1/2

[Event "*** Titled Tuesday Blitz"]
[Site "Chess.com"]
[Date "2020.04.28"]
[Round "5"]
[White "renehp"]
[Black "grzechu96"]
[Result "0-1"]
[WhiteElo "2412"]
[BlackElo "2598"]
[TimeControl "180+1"]
[EndTime "10:56:24 PDT"]
[Termination "grzechu96 won on time"]

1. e4 {[%clk 0:02:59.2]} 1... c5 {[%clk 0:02:58.1]} 2. Nf3 {[%clk 0:02:59.3]}
2... e6 {[%clk 0:02:58.4]} 3. d4 {[%clk 0:02:59.2]} 3... cxd4 {[%clk 0:02:59]}
4. Nxd4 {[%clk 0:02:59.9]} 4... a6 {[%clk 0:02:59.5]} 5. Bd3 {[%clk 0:02:59.3]}
5... Ne7 {[%clk 0:02:58.9]} 6. O-O {[%clk 0:02:56.4]} 6... Nbc6 {[%clk
0:02:59.1]} 7. Nxc6 {[%clk 0:02:53.1]} 7... Nxc6 {[%clk 0:03:00]} 8. c4 {[%clk
0:02:53.7]} 8... g6 {[%clk 0:02:59.9]} 9. Nc3 {[%clk 0:02:53]} 9... Bg7 {[%clk
0:02:59.9]} 10. f4 {[%clk 0:02:52.8]} 10... O-O {[%clk 0:02:34.6]} 11. Kh1
{[%clk 0:02:52.1]} 11... d6 {[%clk 0:02:29.2]} 12. Qe1 {[%clk 0:02:47.9]} 12...
f5 {[%clk 0:02:28.2]} 13. Be3 {[%clk 0:02:46.3]} 13... e5 {[%clk 0:02:04.8]} 14.
Rd1 {[%clk 0:02:43.9]} 14... Nd4 {[%clk 0:01:56.6]} 15. Bxd4 {[%clk 0:02:34.7]}
15... exd4 {[%clk 0:01:56.6]} 16. Nd5 {[%clk 0:02:34.5]} 16... fxe4 {[%clk
0:01:53.2]} 17. Bxe4 {[%clk 0:02:12.4]} 17... Bg4 {[%clk 0:01:53.1]} 18. Bf3
{[%clk 0:02:09.2]} 18... Bxf3 {[%clk 0:01:51.8]} 19. Rxf3 {[%clk 0:02:08.5]}
19... Re8 {[%clk 0:01:47.1]} 20. Qf2 {[%clk 0:02:07.7]} 20... Rc8 {[%clk
0:01:34.9]} 21. b3 {[%clk 0:02:06.1]} 21... b5 {[%clk 0:01:32.4]} 22. f5 {[%clk
0:01:54.3]} 22... gxf5 {[%clk 0:01:32.5]} 23. cxb5 {[%clk 0:01:53.9]} 23... axb5
{[%clk 0:01:32.4]} 24. Rxf5 {[%clk 0:01:53.7]} 24... Rc5 {[%clk 0:01:29.3]} 25.
h3 {[%clk 0:01:53]} 25... Rf8 {[%clk 0:01:14.7]} 26. Qf3 {[%clk 0:01:16.8]}
26... Rxf5 {[%clk 0:01:04.4]} 27. Qxf5 {[%clk 0:01:16.5]} 27... Qf8 {[%clk
0:01:05.1]} 28. Qe4 {[%clk 0:00:19]} 28... Qf7 {[%clk 0:01:04.5]} 29. Nf4 {[%clk
0:00:15.4]} 29... Re5 {[%clk 0:01:04.2]} 30. Qa8+ {[%clk 0:00:13.2]} 30... Re8
{[%clk 0:01:04.1]} 31. Qf3 {[%clk 0:00:13.7]} 31... Rf8 {[%clk 0:01:03.2]} 32.
Rf1 {[%clk 0:00:12.3]} 32... Kh8 {[%clk 0:00:36.4]} 33. Nd3 {[%clk 0:00:08.9]}
33... Qxf3 {[%clk 0:00:19.2]} 34. Rxf3 {[%clk 0:00:09.8]} 34... Ra8 {[%clk
0:00:19.3]} 35. Rf2 {[%clk 0:00:05.8]} 35... Bh6 {[%clk 0:00:17.4]} 36. g4
{[%clk 0:00:04.9]} 36... Be3 {[%clk 0:00:17.7]} 37. Rc2 {[%clk 0:00:04]} 37...
Kg7 {[%clk 0:00:17.4]} 38. Kg2 {[%clk 0:00:04.5]} 38... Kg6 {[%clk 0:00:14.8]}
39. Kf3 {[%clk 0:00:04.9]} 39... d5 {[%clk 0:00:10.7]} 40. Rc5 {[%clk
0:00:03.2]} 40... Rxa2 {[%clk 0:00:10.1]} 41. Rxd5 {[%clk 0:00:03.6]} 41... b4
{[%clk 0:00:06.1]} 0-1

[Event "*** Titled Tuesday Blitz"]
[Site "Chess.com"]
[Date "2020.04.28"]
[Round "5"]
[White "dcann0n88"]
[Black "Slovak_fighter2000"]
[Result "1-0"]
[WhiteElo "2401"]
[BlackElo "2535"]
[TimeControl "180+1"]
[EndTime "10:56:24 PDT"]
[Termination "dcann0n88 won by resignation"]

1. e4 {[%clk 0:03:00.9]} 1... e6 {[%clk 0:02:59]} 2. d4 {[%clk 0:03:01]} 2... d5
{[%clk 0:02:58.8]} 3. Nc3 {[%clk 0:02:59.9]} 3... Nf6 {[%clk 0:02:58.1]} 4. e5
{[%clk 0:03:00.4]} 4... Nfd7 {[%clk 0:02:58.1]} 5. f4 {[%clk 0:03:01.1]} 5... c5
{[%clk 0:02:58.6]} 6. Nf3 {[%clk 0:03:01.7]} 6... Nc6 {[%clk 0:02:59.2]} 7. Be3
{[%clk 0:03:01.6]} 7... Be7 {[%clk 0:02:59.7]} 8. Qd2 {[%clk 0:02:58]} 8... O-O
{[%clk 0:02:59.6]} 9. dxc5 {[%clk 0:02:51.1]} 9... Bxc5 {[%clk 0:03:00.5]} 10.
Bxc5 {[%clk 0:02:50.3]} 10... Nxc5 {[%clk 0:03:01.4]} 11. Nd4 {[%clk 0:02:50.7]}
11... Bd7 {[%clk 0:02:36.4]} 12. Be2 {[%clk 0:02:40.3]} 12... a6 {[%clk
0:02:29.5]} 13. Nxc6 {[%clk 0:02:26.6]} 13... Bxc6 {[%clk 0:02:25.2]} 14. Qd4
{[%clk 0:02:25.4]} 14... b6 {[%clk 0:02:00.6]} 15. O-O {[%clk 0:02:13.6]} 15...
Qe7 {[%clk 0:01:29.9]} 16. Rad1 {[%clk 0:01:20.9]} 16... b5 {[%clk 0:01:16.4]}
17. Kh1 {[%clk 0:01:21.4]} 17... Rab8 {[%clk 0:01:10.8]} 18. Bd3 {[%clk
0:01:11.5]} 18... b4 {[%clk 0:01:05.3]} 19. Ne2 {[%clk 0:01:11.4]} 19... Bb5
{[%clk 0:00:58.8]} 20. Ng3 {[%clk 0:00:59.8]} 20... Bxd3 {[%clk 0:00:54.3]} 21.
cxd3 {[%clk 0:00:58.8]} 21... g6 {[%clk 0:00:51.1]} 22. Rc1 {[%clk 0:00:56.1]}
22... Rfc8 {[%clk 0:00:49.5]} 23. Rc2 {[%clk 0:00:44.9]} 23... b3 {[%clk
0:00:47.4]} 24. axb3 {[%clk 0:00:40.9]} 24... Nxb3 {[%clk 0:00:48.3]} 25. Rxc8+
{[%clk 0:00:38.4]} 25... Rxc8 {[%clk 0:00:49.2]} 26. Qb6 {[%clk 0:00:33]} 26...
Nc5 {[%clk 0:00:31.7]} 27. d4 {[%clk 0:00:31.5]} 27... Nd3 {[%clk 0:00:24.5]}
28. Qxa6 {[%clk 0:00:29]} 28... Rb8 {[%clk 0:00:19.4]} 29. Qxd3 {[%clk
0:00:28.4]} 29... Rxb2 {[%clk 0:00:19.4]} 30. Qc3 {[%clk 0:00:21.5]} 30... Qb7
{[%clk 0:00:18.7]} 31. Rc1 {[%clk 0:00:20.6]} 31... Kg7 {[%clk 0:00:16.1]} 32.
h3 {[%clk 0:00:20.4]} 32... h5 {[%clk 0:00:12.9]} 33. Rc2 {[%clk 0:00:20.3]}
33... Rb1+ {[%clk 0:00:12.4]} 34. Kh2 {[%clk 0:00:20.8]} 34... Qb5 {[%clk
0:00:08.1]} 35. Rc1 {[%clk 0:00:15.1]} 35... Rb2 {[%clk 0:00:07.8]} 36. Qc5
{[%clk 0:00:09.7]} 36... Qd3 {[%clk 0:00:05.2]} 37. Qc3 {[%clk 0:00:10.2]} 37...
Qb5 {[%clk 0:00:04.6]} 38. Rc2 {[%clk 0:00:09.9]} 38... Rb1 {[%clk 0:00:04.3]}
39. Rf2 {[%clk 0:00:09.9]} 39... h4 {[%clk 0:00:03.7]} 40. Ne2 {[%clk 0:00:09]}
40... Qa4 {[%clk 0:00:03.6]} 41. Qf3 {[%clk 0:00:09.3]} 41... Qd1 {[%clk
0:00:03.2]} 42. g4 {[%clk 0:00:07.3]} 42... hxg3+ {[%clk 0:00:03.2]} 43. Kxg3
{[%clk 0:00:06.6]} 43... Qe1 {[%clk 0:00:02.8]} 44. Qg2 {[%clk 0:00:04]} 44...
Qd1 {[%clk 0:00:02.8]} 45. Nc3 {[%clk 0:00:02.4]} 45... Rc1 {[%clk 0:00:02.8]}
46. Nxd1 {[%clk 0:00:02.4]} 46... Rxd1 {[%clk 0:00:03.7]} 47. Rd2 {[%clk
0:00:03]} 47... Re1 {[%clk 0:00:02.9]} 48. h4 {[%clk 0:00:03.4]} 48... Re3+
{[%clk 0:00:03.2]} 49. Kf2 {[%clk 0:00:04]} 49... Re4 {[%clk 0:00:03.8]} 50.
Qxe4 {[%clk 0:00:04]} 50... dxe4 {[%clk 0:00:03.8]} 51. Re2 {[%clk 0:00:04.9]}
1-0